bitfinex/quotes_SOLUSD_20250626
["timestamp","ask_amount","ask_price","bid_price","bid_amount"]
[1750956271106,0.28432314,142.71,142.66,89.14]
[1750956271309,5.49183009,142.71,142.66,89.14]
[1750956271510,1.82482314,142.71,142.66,89.14]
[1750956271717,7.03233009,142.71,142.66,89.14]
[1750956271920,0.28432314,142.69,142.66,89.14]
[1750956272111,5.49183009,142.69,142.66,89.14]
[1750956272307,0.28432314,142.69,142.66,89.14]
[1750956272624,5.49183009,142.69,142.66,89.14]
[1750956272931,0.28432314,142.69,142.66,89.14]
[1750956273134,5.49183009,142.69,142.66,89.14]
[1750956273329,0.28432314,142.69,142.66,89.14]
[1750956273535,5.49183009,142.69,142.66,89.14]
[1750956273710,0.28432314,142.69,142.66,89.14]
[1750956273912,5.49183009,142.69,142.66,89.14]
[1750956274114,0.28432314,142.69,142.66,89.14]
[1750956274315,5.49183009,142.69,142.66,89.14]
[1750956274522,0.28432314,142.69,142.66,89.14]
[1750956274737,5.49183009,142.69,142.66,89.14]
[1750956275028,0.28432314,142.69,142.66,89.14]
[1750956275332,5.49183009,142.69,142.66,89.14]
[1750956275535,0.28432314,142.69,142.66,0.02]
[1750956275739,5.49183009,142.69,142.66,0.02]
[1750956275922,0.28432314,142.69,142.66,0.02]
[1750956276121,5.49183009,142.69,142.66,0.02]
[1750956276438,0.28432314,142.69,142.66,0.02]
[1750956276626,0.28432314,142.69,142.66,6.78556764]
[1750956277331,5.49183009,142.69,142.66,6.78556764]
[1750956277536,0.28432314,142.69,142.66,6.78556764]
[1750956277721,5.49183009,142.69,142.66,6.78556764]
[1750956277922,0.28432314,142.69,142.66,6.78556764]
[1750956278128,5.49183009,142.69,142.66,6.78556764]
[1750956278332,0.28432314,142.69,142.66,6.78556764]
[1750956278512,5.49183009,142.69,142.66,6.78556764]
[1750956278718,0.28432314,142.69,142.66,6.78556764]
[1750956278942,5.49183009,142.69,142.66,6.78556764]
[1750956279150,0.28432314,142.69,142.66,0.02]
[1750956280034,0.28432314,142.69,142.66,89.14]
[1750956280628,5.50266027,142.69,142.66,89.14]
[1750956280931,0.28432314,142.69,142.66,89.14]
[1750956281129,5.50266027,142.69,142.66,89.14]
[1750956281332,0.28432314,142.69,142.66,89.14]
[1750956281641,5.50266027,142.69,142.66,89.14]
[1750956281842,0.28432314,142.69,142.66,89.14]
[1750956282016,5.50266027,142.69,142.66,89.14]
[1750956282213,0.28432314,142.69,142.66,89.14]
[1750956282414,5.50266027,142.69,142.66,89.14]
[1750956282644,0.28432314,142.69,142.66,89.14]
[1750956282946,5.50266027,142.69,142.66,89.14]
[1750956283243,0.28432314,142.69,142.66,89.14]
[1750956283446,5.50266027,142.69,142.66,89.14]
[1750956283624,0.28432314,142.69,142.66,89.14]
[1750956283825,5.50266027,142.69,142.66,89.14]
[1750956284024,0.28432314,142.69,142.66,89.14]
[1750956284346,5.50266027,142.69,142.66,89.14]
[1750956284644,0.28432314,142.69,142.66,89.14]
[1750956285945,0.28432314,142.69,142.66,0.02]
[1750956289029,0.28432314,142.7,142.66,0.02]
[1750956289349,0.28432314,142.68,142.66,0.02]
[1750956291846,0.28432314,142.7,142.66,89.42]
[1750956292143,0.28432314,142.68,142.66,89.42]
[1750956294848,0.28432314,142.68,142.66,0.02]
[1750956294849,7.05597118,142.67,142.66,0.02]
[1750956295056,7.05597118,142.67,142.62,0.02]
[1750956295057,0.28432314,142.66,142.62,0.02]
[1750956295353,6.94712314,142.63,142.62,0.02]
[1750956295528,13.67527118,142.63,142.62,0.02]
[1750956298454,15.60373243,142.63,142.62,0.02]
[1750956299626,44.22373243,142.63,142.62,0.02]
[1750956299827,49.44858047,142.63,142.62,0.02]
[1750956301547,0.42648471,142.62,142.58,0.02]
[1750956301753,5.65133275,142.62,142.58,0.02]
[1750956301982,17.52646467,142.65,142.58,0.02]
[1750956301983,10.0,142.65,142.58,0.02]
[1750956303455,10.0,142.64,142.58,0.02]
[1750956303862,19.07613357,142.63,142.58,0.02]
[1750956304839,0.42648471,142.61,142.58,0.02]
[1750956305236,0.28432314,142.59,142.58,0.02]
[1750956306867,5.89034307,142.59,142.58,0.02]
[1750956307560,12.90345759,142.59,142.58,0.02]
[1750956307862,5.89034307,142.59,142.58,0.02]
[1750956308042,7.4387955,142.61,142.58,0.02]
[1750956309059,13.10891636,142.61,142.58,0.02]
[1750956309786,13.10891636,142.61,142.53,89.4]
[1750956310364,30.63924382,142.61,142.53,89.4]
[1750956311767,0.28432314,142.59,142.52,0.02]
[1750956313552,0.28432314,142.57,142.52,0.02]
[1750956315546,0.28432314,142.56,142.52,0.02]
[1750956316172,0.42648471,142.56,142.52,0.02]
[1750956317684,0.28432314,142.54,142.52,0.02]
[1750956318059,0.42648471,142.54,142.52,0.02]
[1750956318455,3.90099386,142.54,142.52,0.02]
[1750956319562,0.28432314,142.52,142.48,0.02]
[1750956319753,0.28432314,142.52,142.47,0.02]
[1750956319754,0.28432314,142.5,142.47,0.02]
[1750956320153,0.42648471,142.5,142.47,0.02]
[1750956320682,0.28432314,142.5,142.47,0.02]
[1750956321754,0.14216157,142.49,142.47,0.02]
[1750956323184,0.14216157,142.49,142.46,0.02]
[1750956323185,0.28432314,142.48,142.46,0.02]
[1750956323367,0.28432314,142.48,142.44,0.02]
[1750956324202,0.14216157,142.48,142.44,0.02]
[1750956324360,0.14216157,142.48,142.44,89.42]
[1750956324854,8.66756113,142.51,142.44,89.42]
[1750956325058,0.28432314,142.5,142.44,89.42]
[1750956325664,0.14216157,142.5,142.44,89.42]
[1750956325885,0.28432314,142.5,142.44,89.42]
[1750956326378,7.30193761,142.5,142.44,89.42]
[1750956327683,0.14216157,142.5,142.44,96.18556764]
[1750956327881,0.28432314,142.51,142.44,89.42]
[1750956328064,0.28432314,142.51,142.44,96.18556764]
[1750956328465,0.28432314,142.51,142.46,6.76556764]
[1750956328874,0.28432314,142.51,142.45,25.4152165]
[1750956329787,7.30139125,142.51,142.44,95.7126]
[1750956329970,7.30139125,142.51,142.44,89.42]
[1750956330584,7.30139125,142.51,142.44,96.18556764]
[1750956330785,0.28432314,142.53,142.45,25.4152165]
[1750956330985,0.42648471,142.53,142.45,25.4152165]
[1750956331188,7.4425515,142.53,142.45,25.4152165]
[1750956333186,7.4425515,142.53,142.45,18.64964886]
[1750956335183,7.4425515,142.53,142.45,25.4152165]
[1750956335382,0.42648471,142.53,142.45,55.8205165]
[1750956335972,9.83140915,142.54,142.47,6.76556764]
[1750956336175,0.28432314,142.53,142.47,96.16556764]
[1750956338089,0.28432314,142.53,142.48,18.64964886]
[1750956338313,10.14259627,142.55,142.5,6.76556764]
[1750956338504,10.14259627,142.55,142.5,96.16556764]
[1750956339180,0.28432314,142.54,142.5,96.16556764]
[1750956339903,0.28432314,142.54,142.5,89.4]
[1750956341191,7.30012265,142.54,142.5,89.4]
[1750956341378,7.30012265,142.54,142.47,95.56]
[1750956341581,7.30012265,142.54,142.47,6.16]
[1750956341582,0.28432314,142.52,142.47,6.16]
[1750956343407,7.30092674,142.52,142.47,6.16]
[1750956347001,7.30092674,142.52,142.45,89.4]
[1750956348010,7.30092674,142.52,142.44,28.88]
[1750956348181,7.30092674,142.52,142.44,118.28]
[1750956349012,7.30092674,142.52,142.44,125.04556764]
[1750956349207,7.30092674,142.52,142.45,18.64964886]
[1750956349417,0.28432314,142.52,142.45,25.4152165]
[1750956349918,0.14216157,142.52,142.45,25.4152165]
[1750956350093,0.28432314,142.52,142.45,25.4152165]
[1750956350497,0.28432314,142.52,142.45,18.64964886]
[1750956350814,0.28432314,142.54,142.47,6.76556764]
[1750956351023,0.28432314,142.54,142.47,89.4]
[1750956351191,7.30001894,142.54,142.47,89.4]
[1750956351608,12.44255574,142.54,142.47,89.4]
[1750956352018,7.30001894,142.54,142.47,89.4]
[1750956352321,12.44255574,142.54,142.47,89.4]
[1750956353012,7.30001894,142.54,142.47,89.4]
[1750956354404,12.44255574,142.54,142.47,89.4]
[1750956355307,5.1425368,142.53,142.47,89.4]
[1750956356313,12.44255574,142.54,142.47,89.4]
[1750956356513,5.1425368,142.53,142.47,89.4]
[1750956357420,0.28432314,142.51,142.47,89.4]
[1750956358819,5.1425368,142.52,142.47,96.16556764]
[1750956359023,6.16,142.55,142.48,25.4152165]
[1750956359024,5.42685994,142.53,142.48,25.4152165]
[1750956359210,0.28432314,142.53,142.48,25.4152165]
[1750956359412,5.1425368,142.52,142.48,25.4152165]
[1750956359615,0.28432314,142.53,142.48,25.4152165]
[1750956359913,5.42685994,142.53,142.48,25.4152165]
[1750956360115,0.28432314,142.53,142.48,25.4152165]
[1750956360420,12.44299465,142.53,142.48,18.64964886]
[1750956360719,5.1425368,142.52,142.47,89.4]
[1750956361026,0.42648471,142.49,142.44,0.02]
[1750956361328,0.28432314,142.44,142.42,0.02]
[1750956361509,0.28432314,142.44,142.41,0.02]
[1750956361904,5.93170938,142.44,142.41,0.02]
[1750956362215,0.28432314,142.44,142.41,0.02]
[1750956362807,5.42685994,142.44,142.41,0.02]
[1750956363002,10.94365776,142.44,142.41,0.02]
[1750956363524,0.28432314,142.42,142.41,0.02]
[1750956365409,0.28432314,142.44,142.41,0.02]
[1750956365607,5.42685994,142.44,142.41,0.02]
[1750956365808,0.28432314,142.44,142.41,0.02]
[1750956366308,5.1425368,142.45,142.41,0.02]
[1750956366731,20.0807728,142.46,142.41,0.02]
[1750956366902,0.28432314,142.45,142.41,0.02]
[1750956368807,0.28432314,142.47,142.41,18.66964886]
[1750956369009,0.28432314,142.47,142.41,108.06964886]
[1750956369216,0.14216157,142.47,142.41,108.06964886]
[1750956370041,0.28432314,142.47,142.41,108.06964886]
[1750956371025,5.86229891,142.47,142.42,18.64964886]
[1750956371528,0.28432314,142.47,142.42,18.64964886]
[1750956373608,0.28432314,142.47,142.42,25.4152165]
[1750956374013,0.28432314,142.47,142.42,18.64964886]
[1750956374509,0.28432314,142.47,142.42,25.4152165]
[1750956374708,0.28432314,142.47,142.42,114.8152165]
[1750956375934,7.01813188,142.49,142.43,6.76556764]
[1750956376111,0.28432314,142.48,142.43,6.76556764]
[1750956376434,0.28432314,142.48,142.45,18.64964886]
[1750956377718,0.28432314,142.49,142.45,6.76556764]
[1750956377940,0.28432314,142.5,142.46,18.64964886]
[1750956378440,6.02579818,142.5,142.46,18.64964886]
[1750956378735,0.28432314,142.5,142.46,18.64964886]
[1750956379314,7.30191108,142.5,142.46,18.64964886]
[1750956380730,13.03269331,142.5,142.46,18.64964886]
[1750956381617,6.01510537,142.5,142.46,18.64964886]
[1750956382018,13.03269797,142.5,142.46,18.64964886]
[1750956383044,13.03269797,142.5,142.45,96.16556764]
[1750956383648,13.03269797,142.5,142.46,18.64964886]
[1750956384031,13.03269797,142.5,142.45,18.64964886]
[1750956384331,13.03269797,142.5,142.45,6.76556764]
[1750956384864,13.03269797,142.5,142.45,18.64964886]
[1750956385324,6.01510537,142.5,142.45,6.76556764]
[1750956385525,0.28432314,142.5,142.45,6.76556764]
[1750956385729,12.15959822,142.51,142.47,18.64964886]
[1750956386047,0.28432314,142.51,142.47,18.64964886]
[1750956386625,5.81588147,142.51,142.46,96.16556764]
[1750956386843,0.28432314,142.51,142.47,18.64964886]
[1750956387145,5.42685994,142.51,142.47,18.64964886]
[1750956387321,0.28432314,142.51,142.47,18.64964886]
[1750956388046,7.30138133,142.51,142.47,18.64964886]
[1750956390149,12.44391813,142.51,142.44,18.64964886]
[1750956390454,5.1425368,142.5,142.44,18.64964886]
[1750956391350,0.28432314,142.48,142.44,18.64964886]
[1750956393663,7.30290074,142.48,142.44,18.64964886]
[1750956394349,7.30290074,142.48,142.41,14.567]
[1750956394660,7.30290074,142.48,142.42,18.64964886]
[1750956394957,12.44543754,142.48,142.42,18.64964886]
[1750956395251,7.30290074,142.48,142.42,18.64964886]
[1750956395451,12.44543754,142.48,142.42,18.64964886]
[1750956395752,7.30290074,142.48,142.42,18.64964886]
[1750956395958,12.44543754,142.48,142.42,18.64964886]
[1750956396141,7.30290074,142.48,142.42,18.64964886]
[1750956396343,14.07053754,142.48,142.42,18.64964886]
[1750956398754,31.61685983,142.48,142.42,18.64964886]
[1750956398927,0.28432314,142.46,142.41,6.3]
[1750956399253,0.28432314,142.44,142.41,6.3]
[1750956399958,0.28432314,142.44,142.41,0.02]
[1750956401352,7.3048676,142.44,142.41,0.02]
[1750956401741,12.4474044,142.44,142.41,0.02]
[1750956402059,7.3048676,142.44,142.41,0.02]
[1750956402238,12.4474044,142.44,142.41,0.02]
[1750956402434,7.3048676,142.44,142.41,0.02]
[1750956402650,0.28432314,142.42,142.41,0.02]
[1750956402854,5.42685994,142.42,142.41,0.02]
[1750956403041,0.28432314,142.42,142.41,0.02]
[1750956403245,5.42685994,142.42,142.41,0.02]
[1750956403767,5.56902151,142.42,142.41,0.02]
[1750956404343,11.90272151,142.42,142.41,0.02]
[1750956404566,7.30630193,142.41,142.4,0.02]
[1750956405868,0.42648471,142.4,142.37,0.02]
[1750956407064,7.02296509,142.39,142.37,0.02]
[1750956408364,0.42648471,142.38,142.37,0.02]
[1750956409066,7.44994306,142.38,142.37,0.02]
[1750956409651,10.98698643,142.38,142.37,0.02]
[1750956410656,12.52488643,142.38,142.37,0.02]
[1750956410849,12.52488643,142.38,142.35,0.02]
[1750956415654,22.52488643,142.38,142.35,0.02]
[1750956416085,40.0835323,142.38,142.35,0.02]
[1750956416261,40.0835323,142.38,142.28,1.6368]
[1750956416860,0.28432314,142.36,142.28,1.6368]
[1750956417662,0.42648471,142.34,142.28,1.6368]
[1750956419570,7.02592566,142.33,142.28,1.6368]
[1750956419755,12.72822039,142.33,142.28,1.6368]
[1750956422079,0.28432314,142.34,142.29,25.4152165]
[1750956422273,7.02522676,142.35,142.29,25.4152165]
[1750956422478,7.02441985,142.37,142.31,18.64964886]
[1750956422678,0.28432314,142.36,142.31,18.64964886]
[1750956422977,0.42648471,142.36,142.29,18.64964886]
[1750956423184,0.28432314,142.34,142.29,18.64964886]
[1750956423556,0.42648471,142.34,142.27,89.4]
[1750956423762,0.42648471,142.34,142.28,18.64964886]
[1750956424565,0.42648471,142.34,142.27,89.4]
[1750956424785,0.42648471,142.34,142.26,25.08574886]
[1750956424977,6.64648471,142.34,142.26,25.08574886]
[1750956425287,0.42648471,142.32,142.26,25.08574886]
[1750956426185,0.42648471,142.32,142.26,18.64964886]
[1750956427083,0.28432314,142.32,142.27,25.4152165]
[1750956427391,0.28432314,142.31,142.25,18.64964886]
[1750956427970,0.28432314,142.31,142.25,25.4152165]
[1750956428179,0.14216157,142.31,142.27,6.76556764]
[1750956428682,13.24548684,142.34,142.28,25.4152165]
[1750956428988,0.28432314,142.33,142.28,18.64964886]
[1750956429169,0.28432314,142.33,142.28,25.4152165]
[1750956429484,7.31025602,142.33,142.28,25.4152165]
[1750956430582,7.31025602,142.33,142.28,18.64964886]
[1750956430888,7.31025602,142.33,142.27,89.4]
[1750956431598,7.31025602,142.33,142.25,18.64964886]
[1750956431599,0.28432314,142.31,142.25,18.64964886]
[1750956433389,0.28432314,142.31,142.24,90.6298951]
[1750956433595,0.28432314,142.29,142.24,90.6298951]
[1750956434779,0.28432314,142.29,142.24,97.39546274]
[1750956434976,0.28432314,142.29,142.25,18.64964886]
[1750956435675,0.28432314,142.28,142.25,18.64964886]
[1750956437799,0.28432314,142.27,142.24,1.2298951]
[1750956439680,0.28432314,142.25,142.24,1.2298951]
[1750956440798,6.43566157,142.3,142.24,1.2298951]
[1750956440799,0.14216157,142.29,142.24,1.2298951]
[1750956441009,0.42648471,142.29,142.24,1.2298951]
[1750956441374,7.45438547,142.29,142.24,1.2298951]
[1750956441594,7.3122239,142.29,142.24,1.2298951]
[1750956442773,0.14216157,142.28,142.24,1.2298951]
[1750956443795,0.28432314,142.26,142.24,1.2298951]
[1750956446202,0.28432314,142.25,142.24,1.2298951]
[1750956446789,24.59419576,142.31,142.24,1.2298951]
[1750956447012,0.42648471,142.3,142.24,1.2298951]
[1750956447909,0.42648471,142.28,142.24,1.2298951]
[1750956450509,0.28432314,142.26,142.24,1.2298951]
[1750956452505,0.28432314,142.25,142.24,1.2298951]
[1750956452709,0.42648471,142.25,142.24,1.2298951]
[1750956453694,0.42648471,142.25,142.18,0.02]
[1750956454292,0.42648471,142.23,142.18,0.02]
[1750956456207,7.03011103,142.25,142.18,0.02]
[1750956456517,0.42648471,142.24,142.18,0.02]
[1750956458391,0.42648471,142.22,142.18,0.02]
[1750956459944,0.42648471,142.22,142.12,34.20377326]
[1750956459945,0.42648471,142.2,142.13,18.64964886]
[1750956460104,0.42648471,142.2,142.12,34.20377326]
[1750956460306,0.42648471,142.2,142.13,18.64964886]
[1750956460503,0.28432314,142.18,142.13,18.64964886]
[1750956460905,0.28432314,142.18,142.13,25.4152165]
[1750956461310,0.28432314,142.18,142.13,18.64964886]
[1750956462495,7.31778895,142.18,142.13,25.4152165]
[1750956462718,7.31778895,142.18,142.13,18.64964886]
[1750956463123,10.76020645,142.18,142.13,18.64964886]
[1750956463301,10.76020645,142.18,142.12,18.66964886]
[1750956471131,10.76020645,142.18,142.15,6.76556764]
[1750956471132,0.14216157,142.18,142.15,6.76556764]
[1750956471318,19.90350023,142.23,142.17,6.76556764]
[1750956471522,5.1458247,142.25,142.21,6.76556764]
[1750956471736,10.72407836,142.26,142.22,6.76556764]
[1750956472031,9.27999009,142.27,142.22,6.76556764]
[1750956472221,9.27999009,142.27,142.2,18.64964886]
[1750956472222,9.27999009,142.27,142.23,6.76556764]
[1750956472428,16.30904946,142.27,142.23,18.64964886]
[1750956472732,15.02012027,142.27,142.23,18.64964886]
[1750956473035,15.02012027,142.27,142.22,6.76556764]
[1750956473036,9.27999009,142.27,142.24,25.4152165]
[1750956473205,8.63690415,142.29,142.25,6.76556764]
[1750956473404,0.28432314,142.29,142.24,25.4152165]
[1750956474540,12.74218551,142.3,142.24,25.4152165]
[1750956475040,12.74218551,142.3,142.24,18.64964886]
[1750956475739,12.74218551,142.3,142.24,25.4152165]
[1750956476130,12.74218551,142.3,142.24,18.64964886]
[1750956476313,12.74218551,142.3,142.23,18.64964886]
[1750956476722,16.32262718,142.3,142.23,18.64964886]
[1750956478021,16.32262718,142.3,142.23,25.4152165]
[1750956479728,16.32262718,142.3,142.24,6.76556764]
[1750956479938,10.60794308,142.3,142.24,6.76556764]
[1750956480642,3.58044167,142.3,142.26,18.64964886]
[1750956480850,7.02708593,142.31,142.26,18.64964886]
[1750956481026,12.61455164,142.31,142.26,18.64964886]
[1750956481538,12.61455164,142.31,142.26,6.76556764]
[1750956481740,7.02662446,142.32,142.26,6.76556764]
[1750956482220,0.14216157,142.33,142.27,6.76556764]
[1750956482426,5.69355729,142.33,142.27,6.76556764]
[1750956482642,3.57253356,142.33,142.27,6.76556764]
[1750956483020,3.57253356,142.33,142.26,6.76556764]
[1750956483445,7.02641933,142.32,142.26,6.76556764]
[1750956484850,7.02641933,142.32,142.26,18.64964886]
[1750956485147,7.02641933,142.32,142.26,25.4152165]
[1750956485325,16.08276274,142.33,142.26,114.8152165]
[1750956485521,16.08276274,142.33,142.28,18.64964886]
[1750956486744,16.08276274,142.33,142.27,18.64964886]
[1750956491747,6.46,142.35,142.28,6.76556764]
[1750956491947,6.46,142.35,142.29,18.64964886]
[1750956492134,154.27976456,142.39,142.31,25.4152165]
[1750956492135,7.02345835,142.38,142.31,25.4152165]
[1750956492336,24.58210422,142.38,142.3,25.4152165]
[1750956493154,17.55864587,142.38,142.3,25.4152165]
[1750956493351,0.14216157,142.37,142.3,18.64964886]
[1750956493651,5.81605159,142.37,142.3,18.64964886]
[1750956495664,7.02444506,142.36,142.3,18.64964886]
[1750956495959,5.15459815,142.34,142.3,25.4152165]
[1750956496255,5.15459815,142.34,142.3,114.8152165]
[1750956496453,7.02444506,142.36,142.3,114.8152165]
[1750956497646,12.69807385,142.37,142.3,114.8152165]
[1750956497956,7.02418383,142.37,142.3,114.8152165]
[1750956499240,12.66556633,142.37,142.3,114.8152165]
[1750956499837,12.66556633,142.37,142.31,6.76556764]
[1750956500143,8.54559671,142.4,142.35,18.64964886]
[1750956501658,7.02279671,142.4,142.35,18.64964886]
[1750956501850,12.74640747,142.41,142.35,25.4152165]
[1750956502044,7.06221895,142.41,142.35,25.4152165]
[1750956502253,0.04,142.41,142.37,18.64964886]
[1750956502960,0.04,142.41,142.39,18.64964886]
[1750956503645,0.04,142.41,142.39,6.76556764]
[1750956504349,0.04,142.41,142.39,18.64964886]
[1750956504753,0.04,142.41,142.37,6.76556764]
[1750956505669,0.04,142.41,142.39,18.64964886]
[1750956507774,0.04,142.41,142.39,6.76556764]
[1750956508346,0.04,142.41,142.4,25.4152165]
[1750956509069,0.04,142.41,142.4,25.55737807]
[1750956509371,0.04,142.41,142.4,18.64964886]
[1750956510472,0.04,142.41,142.4,25.4152165]
[1750956510664,0.04,142.41,142.4,18.64964886]
[1750956511666,0.04,142.41,142.4,25.4152165]
[1750956512883,0.04,142.41,142.4,114.95737807]
[1750956513054,0.04,142.41,142.4,117.26922526]
[1750956513957,0.04,142.41,142.4,137.58396481]
[1750956514348,0.04,142.41,142.4,123.79592526]
[1750956514983,0.04,142.41,142.4,137.58396481]
[1750956515283,0.04,142.41,142.4,130.5614929]
[1750956515854,0.04,142.41,142.4,116.88819605]
[1750956516071,0.04,142.41,142.4,116.4248165]
[1750956525390,0.04,142.41,142.4,18.64964886]
[1750956528086,0.04,142.41,142.4,25.4152165]
[1750956530557,0.04,142.41,142.4,18.64964886]
[1750956531497,0.04,142.41,142.4,108.04964886]
[1750956532988,0.04,142.41,142.4,114.8152165]
[1750956533293,0.04,142.41,142.4,115.51746369]
[1750956533498,0.04,142.41,142.4,114.8152165]
[1750956540099,0.04,142.41,142.4,115.65962526]
[1750956543206,0.04,142.41,142.4,114.95737807]
[1750956545379,0.04,142.41,142.4,115.65962526]
[1750956545585,0.04,142.41,142.4,114.95737807]
[1750956546709,0.04,142.41,142.4,115.65962526]
[1750956550406,0.04,142.41,142.4,108.04964886]
[1750956555411,0.04,142.41,142.4,114.8152165]
[1750956558111,0.04,142.41,142.4,18.64964886]
[1750956563408,0.04,142.41,142.37,89.4]
[1750956563612,5.17574361,142.41,142.38,18.64964886]
[1750956568011,12.19786702,142.41,142.35,108.04964886]
[1750956568220,5.13574361,142.4,142.35,108.04964886]
[1750956571640,12.19786702,142.41,142.35,108.04964886]
[1750956571934,1.5574,142.4,142.35,108.04964886]
[1750956572135,6.69314361,142.4,142.35,108.04964886]
[1750956572832,6.69314361,142.4,142.35,18.64964886]
[1750956573542,1.5574,142.4,142.35,18.64964886]
[1750956573947,1.5574,142.4,142.35,25.4152165]
[1750956574248,1.5574,142.4,142.35,18.64964886]
[1750956575051,8.58013445,142.4,142.35,18.64964886]
[1750956577249,1.5574,142.4,142.35,18.64964886]
[1750956577534,8.57991437,142.4,142.35,18.64964886]
[1750956583853,6.2914,142.39,142.33,18.64964886]
[1750956584262,7.02345835,142.38,142.33,18.64964886]
[1750956586239,7.02345835,142.38,142.3,89.4]
[1750956586439,7.02345835,142.38,142.31,18.64964886]
[1750956592041,13.31449064,142.39,142.31,25.4152165]
[1750956592252,13.31449064,142.39,142.31,6.76556764]
[1750956592956,13.31439268,142.39,142.33,18.64964886]
[1750956594835,13.31439268,142.39,142.31,89.4]
[1750956595034,13.31439268,142.39,142.32,18.64964886]
[1750956596166,13.31439268,142.39,142.32,25.4152165]
[1750956596345,6.2914,142.39,142.34,18.64964886]
[1750956597961,1.5574,142.4,142.34,108.04964886]
[1750956598144,1.5574,142.4,142.36,18.64964886]
[1750956598740,0.04,142.41,142.36,18.64964886]
[1750956600540,0.18216157,142.41,142.35,89.4]
[1750956601066,0.18216157,142.41,142.33,18.64964886]
[1750956601864,0.18216157,142.41,142.32,18.64964886]
[1750956602939,7.02247191,142.4,142.32,18.64964886]
[1750956604373,7.02247191,142.4,142.32,25.4152165]
[1750956604541,0.04,142.41,142.35,6.76556764]
[1750956605141,0.04,142.41,142.34,25.4152165]
[1750956605448,0.04,142.41,142.34,18.64964886]
[1750956607162,7.06197879,142.41,142.34,18.64964886]
[1750956608264,7.06197879,142.41,142.34,108.04964886]
[1750956608570,7.06197879,142.41,142.34,114.8152165]
[1750956609885,0.04,142.41,142.34,114.8152165]
[1750956610768,0.04,142.41,142.35,6.76556764]
[1750956612281,0.04,142.41,142.37,6.76556764]
[1750956613075,0.04,142.41,142.36,115.517661]
[1750956614382,0.04,142.41,142.36,108.04964886]
[1750956616183,0.04,142.41,142.36,114.8152165]
[1750956616780,0.04,142.41,142.36,108.04964886]
[1750956616989,0.04,142.41,142.36,114.8152165]
[1750956617293,0.04,142.41,142.36,18.64964886]
[1750956617463,0.04,142.41,142.36,25.4152165]
[1750956618090,0.04,142.41,142.4,18.64964886]
[1750956618260,0.04,142.41,142.4,114.8152165]
[1750956621488,0.04,142.41,142.4,143.6952165]
[1750956623984,0.04,142.41,142.4,143.83737807]
[1750956624380,0.04,142.41,142.4,150.85984998]
[1750956624588,0.04,142.41,142.4,143.83737807]
[1750956625112,0.04,142.41,142.4,150.85984998]
[1750956625387,0.04,142.41,142.4,157.35724998]
[1750956626082,0.04,142.41,142.4,157.64157312]
[1750956626287,0.04,142.41,142.4,164.40714076]
[1750956627159,0.04,142.41,142.4,157.64157312]
[1750956628685,0.04,142.41,142.4,150.61910121]
[1750956629165,0.04,142.41,142.4,143.83737807]
[1750956631585,0.04,142.41,142.4,137.07181043]
[1750956631785,0.04,142.41,142.4,144.53962526]
[1750956631993,0.04,142.41,142.4,143.83737807]
[1750956636497,0.04,142.41,142.4,108.04964886]
[1750956640405,0.04,142.41,142.38,89.4]
[1750956640576,0.04,142.41,142.39,18.64964886]
[1750956645321,0.04,142.41,142.37,18.64964886]
[1750956645476,0.04,142.41,142.37,114.8152165]
[1750956645681,0.04,142.41,142.38,28.86]
[1750956646182,5.21641846,142.41,142.38,28.86]
[1750956646725,0.04,142.41,142.38,28.86]
[1750956647892,0.04,142.41,142.39,18.64964886]
[1750956648079,0.04,142.41,142.4,55.11962526]
[1750956648289,0.04,142.41,142.4,144.51962526]
[1750956648485,0.04,142.41,142.4,143.81737807]
[1750956652330,0.04,142.41,142.4,143.81737807]
[1750956652707,0.04,142.41,142.4,137.05181043]
[1750956653037,0.04,142.41,142.4,144.51962526]
[1750956653209,0.04,142.41,142.4,143.81737807]
[1750956654720,0.04,142.41,142.4,137.05181043]
[1750956654918,0.04,142.41,142.4,137.75405762]
[1750956656620,0.04,142.41,142.4,144.51962526]
[1750956656814,0.04,142.41,142.4,143.81737807]
[1750956660300,0.04,142.41,142.4,137.05181043]
[1750956660617,0.04,142.41,142.4,144.51962526]
[1750956660809,0.04,142.41,142.4,143.81737807]